[Event "Titled Tuesday Blitz August 16 Early 2022"]
[White "Barria Zuniga, Daniel"]
[Black "Ianov, Viktor"]
[WhiteFideId "3400816"]
[BlackFideId "14102730"]
[WhiteElo "2414"]
[BlackElo "2152"]
[Result "0-1"]
[Round "10"]
[TimeControl "180+2"]
[Date "2022.08.18"]
[WhiteClock "0:00:00"]
[BlackClock "0:00:00"]

1. d4 {[%clk 0:00:00]}  d6 {[%clk 0:00:00]} 2. Nf3 {[%clk 0:00:00]}  g6 {[%clk 0:00:00]} 3. c4 {[%clk 0:00:00]}  Bg7 {[%clk 0:00:00]} 4. Nc3 {[%clk 0:00:00]}  Bg4 {[%clk 0:00:00]} 5. e4 {[%clk 0:00:00]}  Nc6 {[%clk 0:00:00]} 6. Be3 {[%clk 0:00:00]}  e5 {[%clk 0:00:00]} 7. d5 {[%clk 0:00:00]}  Nd4 {[%clk 0:00:00]} 8. Nb5 {[%clk 0:00:00]}  Nxf3+ {[%clk 0:00:00]} 9. gxf3 {[%clk 0:00:00]}  Bd7 {[%clk 0:00:00]} 10. c5 {[%clk 0:00:00]}  a6 {[%clk 0:00:00]} 11. Nc3 {[%clk 0:00:00]}  Bh6 {[%clk 0:00:00]} 12. Qd2 {[%clk 0:00:00]}  Bxe3 {[%clk 0:00:00]} 13. Qxe3 {[%clk 0:00:00]}  Nf6 {[%clk 0:00:00]} 14. cxd6 {[%clk 0:00:00]}  cxd6 {[%clk 0:00:00]} 15. f4 {[%clk 0:00:00]}  exf4 {[%clk 0:00:00]} 16. Qxf4 {[%clk 0:00:00]}  Qe7 {[%clk 0:00:00]} 17. O-O-O {[%clk 0:00:00]}  Rc8 {[%clk 0:00:00]} 18. Bd3 {[%clk 0:00:00]}  O-O {[%clk 0:00:00]} 19. Kb1 {[%clk 0:00:00]}  b5 {[%clk 0:00:00]} 20. Rhe1 {[%clk 0:00:00]}  Ng4 {[%clk 0:00:00]} 21. Qg3 {[%clk 0:00:00]}  b4 {[%clk 0:00:00]} 22. Ne2 {[%clk 0:00:00]}  Ne5 {[%clk 0:00:00]} 23. Nd4 {[%clk 0:00:00]}  Kh8 {[%clk 0:00:00]} 24. f4 {[%clk 0:00:00]}  Nxd3 {[%clk 0:00:00]} 25. Qxd3 {[%clk 0:00:00]}  Qf6 {[%clk 0:00:00]} 26. Qg3 {[%clk 0:00:00]}  Rc4 {[%clk 0:00:00]} 27. e5 {[%clk 0:00:00]}  Qg7 {[%clk 0:00:00]} 28. Qd3 {[%clk 0:00:00]}  Rfc8 {[%clk 0:00:00]} 29. e6 {[%clk 0:00:00]}  fxe6 {[%clk 0:00:00]} 30. dxe6 {[%clk 0:00:00]}  Be8 {[%clk 0:00:00]} 31. f5 {[%clk 0:00:00]}  a5 {[%clk 0:00:00]} 32. Qe3 {[%clk 0:00:00]}  gxf5 {[%clk 0:00:00]} 33. Qf4 {[%clk 0:00:00]}  Qg4 {[%clk 0:00:00]} 34. Qxd6 {[%clk 0:00:00]}  f4 {[%clk 0:00:00]} 35. Qe5+ {[%clk 0:00:00]}  Qg7 {[%clk 0:00:00]} 36. Qxf4 {[%clk 0:00:00]}  Bg6+ {[%clk 0:00:00]} 37. Ka1 {[%clk 0:00:00]}  Qe7 {[%clk 0:00:00]} 38. h4 {[%clk 0:00:00]}  a4 {[%clk 0:00:00]} 39. h5 {[%clk 0:00:00]}  Be8 {[%clk 0:00:00]} 40. Rg1 {[%clk 0:00:00]}  R4c5 {[%clk 0:00:00]} 41. Rdf1 {[%clk 0:00:00]}  Bxh5 {[%clk 0:00:00]} 42. Nf5 {[%clk 0:00:00]}  Qf6 {[%clk 0:00:00]} 43. Qg5 {[%clk 0:00:00]}  Qxg5 {[%clk 0:00:00]} 44. Rxg5 {[%clk 0:00:00]}  Rc1+ {[%clk 0:00:00]} 0-1


[Site "https://www.chess.com"]

[Event "Titled Tuesday Blitz August 16 Early 2022"]
[White "Beerdsen, Thomas"]
[Black "Tica, Sven"]
[WhiteFideId "1030108"]
[BlackFideId "14526948"]
[WhiteElo "2567"]
[BlackElo "2350"]
[Result "0-1"]
[Round "10"]
[TimeControl "180+1"]
[Date "2022.08.16"]
[WhiteClock "0:01:36"]
[BlackClock "0:01:12"]

1. e4 {[%clk 0:03:00]}  g6 {[%clk 0:03:00]} 2. d4 {[%clk 0:03:01]}  Bg7 {[%clk 0:03:00]} 3. Nf3 {[%clk 0:03:01]}  d6 {[%clk 0:03:00]} 4. Bc4 {[%clk 0:03:02]}  e6 {[%clk 0:03:00]} 5. Bb3 {[%clk 0:03:01]}  Ne7 {[%clk 0:03:00]} 6. h4 {[%clk 0:03:02]}  h6 {[%clk 0:03:00]} 7. Nc3 {[%clk 0:03:02]}  Nd7 {[%clk 0:03:00]} 8. Bf4 {[%clk 0:03:02]}  b6 {[%clk 0:03:00]} 9. a4 {[%clk 0:03:02]}  a6 {[%clk 0:03:00]} 10. Qd2 {[%clk 0:03:02]}  Bb7 {[%clk 0:03:00]} 11. O-O-O {[%clk 0:03:03]}  Nf6 {[%clk 0:02:51]} 12. Qe2 {[%clk 0:02:55]}  Qd7 {[%clk 0:02:46]} 13. Kb1 {[%clk 0:02:52]}  d5 {[%clk 0:02:29]} 14. Ne5 {[%clk 0:02:49]}  Qd8 {[%clk 0:02:26]} 15. f3 {[%clk 0:02:39]}  c6 {[%clk 0:02:24]} 16. g4 {[%clk 0:02:38]}  b5 {[%clk 0:02:22]} 17. g5 {[%clk 0:02:33]}  Nh5 {[%clk 0:02:22]} 18. gxh6 {[%clk 0:02:30]}  Bf8 {[%clk 0:02:06]} 19. Bh2 {[%clk 0:02:13]}  Bxh6 {[%clk 0:02:05]} 20. exd5 {[%clk 0:02:10]}  exd5 {[%clk 0:01:52]} 21. Rde1 {[%clk 0:02:04]}  O-O {[%clk 0:01:43]} 22. Rhg1 {[%clk 0:01:58]}  Nf5 {[%clk 0:01:34]} 23. Ne4 {[%clk 0:01:46]}  Nxd4 {[%clk 0:01:28]} 24. Qd3 {[%clk 0:01:43]}  dxe4 {[%clk 0:01:20]} 25. Rxe4 {[%clk 0:01:35]}  Nxb3 {[%clk 0:01:19]} 26. Qxb3 {[%clk 0:01:36]}  Qd5 {[%clk 0:01:12]} 0-1


[Site "https://www.chess.com"]

[Event "Titled Tuesday Blitz August 16 Early 2022"]
[White "Bortnyk, Olexandr"]
[Black "Martinez Alcantara, Jose Eduardo"]
[WhiteFideId "14120828"]
[BlackFideId "3805662"]
[WhiteElo "2723"]
[BlackElo "2703"]
[Result "1-0"]
[Round "10"]
[TimeControl "180+1"]
[Date "2022.08.16"]
[WhiteClock "0:00:05"]
[BlackClock "0:00:02"]

1. d4 {[%clk 0:03:00]}  Nf6 {[%clk 0:03:00]} 2. Nc3 {[%clk 0:03:01]}  d5 {[%clk 0:03:00]} 3. Bf4 {[%clk 0:03:01]}  c5 {[%clk 0:02:59]} 4. e4 {[%clk 0:03:01]}  Nxe4 {[%clk 0:02:56]} 5. Nxe4 {[%clk 0:03:01]}  dxe4 {[%clk 0:02:57]} 6. d5 {[%clk 0:02:59]}  Qb6 {[%clk 0:02:36]} 7. Ne2 {[%clk 0:02:58]}  Bg4 {[%clk 0:02:26]} 8. h3 {[%clk 0:02:40]}  Bxe2 {[%clk 0:02:26]} 9. Bxe2 {[%clk 0:02:41]}  Nd7 {[%clk 0:02:26]} 10. O-O {[%clk 0:02:39]}  g6 {[%clk 0:02:26]} 11. c3 {[%clk 0:02:37]}  Bg7 {[%clk 0:02:26]} 12. Qa4 {[%clk 0:02:37]}  Rd8 {[%clk 0:01:59]} 13. Qxe4 {[%clk 0:02:11]}  O-O {[%clk 0:01:59]} 14. Qc2 {[%clk 0:02:09]}  Rfe8 {[%clk 0:01:40]} 15. Rad1 {[%clk 0:02:07]}  Nf6 {[%clk 0:01:29]} 16. Bf3 {[%clk 0:02:05]}  Qa6 {[%clk 0:01:13]} 17. a4 {[%clk 0:01:46]}  c4 {[%clk 0:01:11]} 18. Rfe1 {[%clk 0:01:40]}  Nd7 {[%clk 0:01:11]} 19. Bc7 {[%clk 0:01:27]}  Rc8 {[%clk 0:01:00]} 20. Bg3 {[%clk 0:01:23]}  Nc5 {[%clk 0:00:56]} 21. Bg4 {[%clk 0:01:15]}  Rcd8 {[%clk 0:00:52]} 22. Bc7 {[%clk 0:01:13]}  Nd3 {[%clk 0:00:46]} 23. Bxd8 {[%clk 0:00:59]}  Nxe1 {[%clk 0:00:45]} 24. Rxe1 {[%clk 0:00:49]}  Rxd8 {[%clk 0:00:46]} 25. Rxe7 {[%clk 0:00:45]}  Rxd5 {[%clk 0:00:46]} 26. Qe4 {[%clk 0:00:41]}  Qd6 {[%clk 0:00:33]} 27. Rd7 {[%clk 0:00:23]}  Rd1+ {[%clk 0:00:31]} 28. Bxd1 {[%clk 0:00:23]}  Qxd7 {[%clk 0:00:32]} 29. Bf3 {[%clk 0:00:24]}  Qxa4 {[%clk 0:00:29]} 30. Qxb7 {[%clk 0:00:22]}  Qa1+ {[%clk 0:00:27]} 31. Kh2 {[%clk 0:00:22]}  Be5+ {[%clk 0:00:28]} 32. g3 {[%clk 0:00:22]}  Qe1 {[%clk 0:00:14]} 33. Qxa7 {[%clk 0:00:21]}  Qd2 {[%clk 0:00:13]} 34. Qb6 {[%clk 0:00:20]}  Kg7 {[%clk 0:00:07]} 35. Kg1 {[%clk 0:00:19]}  Bf6 {[%clk 0:00:05]} 36. h4 {[%clk 0:00:18]}  h5 {[%clk 0:00:05]} 37. Qb5 {[%clk 0:00:15]}  Qd3 {[%clk 0:00:03]} 38. Bd5 {[%clk 0:00:13]}  Qd1+ {[%clk 0:00:02]} 39. Kg2 {[%clk 0:00:13]}  Qb1 {[%clk 0:00:02]} 40. Qb7 {[%clk 0:00:09]}  Kh6 {[%clk 0:00:02]} 41. Qxf7 {[%clk 0:00:06]}  Bg7 {[%clk 0:00:02]} 42. Qe6 {[%clk 0:00:05]} 1-0


[Site "https://www.chess.com"]

[Event "Titled Tuesday Blitz August 16 Early 2022"]
[White "Bykhovsky, Anatoly"]
[Black "Timofeev, Artyom"]
[WhiteFideId "2806991"]
[BlackFideId "4140419"]
[WhiteElo "2540"]
[BlackElo "2578"]
[Result "0-1"]
[Round "10"]
[TimeControl "180+1"]
[Date "2022.08.16"]
[WhiteClock "0:00:12"]
[BlackClock "0:00:23"]

1. d4 {[%clk 0:03:00]}  Nf6 {[%clk 0:02:59]} 2. Nf3 {[%clk 0:03:01]}  g6 {[%clk 0:02:58]} 3. c4 {[%clk 0:03:02]}  Bg7 {[%clk 0:02:58]} 4. Nc3 {[%clk 0:03:03]}  d5 {[%clk 0:02:59]} 5. Bg5 {[%clk 0:03:03]}  e6 {[%clk 0:02:54]} 6. e3 {[%clk 0:03:03]}  O-O {[%clk 0:02:54]} 7. Rc1 {[%clk 0:03:03]}  c6 {[%clk 0:02:53]} 8. b4 {[%clk 0:02:59]}  Nbd7 {[%clk 0:02:51]} 9. Qb3 {[%clk 0:02:58]}  h6 {[%clk 0:02:47]} 10. Bh4 {[%clk 0:02:58]}  a5 {[%clk 0:02:45]} 11. b5 {[%clk 0:02:55]}  a4 {[%clk 0:02:39]} 12. Qb4 {[%clk 0:02:52]}  Re8 {[%clk 0:02:37]} 13. Be2 {[%clk 0:02:38]}  Bf8 {[%clk 0:02:36]} 14. Qb1 {[%clk 0:02:36]}  Qa5 {[%clk 0:02:32]} 15. O-O {[%clk 0:02:35]}  Bb4 {[%clk 0:02:18]} 16. Qc2 {[%clk 0:02:20]}  Bxc3 {[%clk 0:02:13]} 17. Qxc3 {[%clk 0:02:20]}  Qxc3 {[%clk 0:02:13]} 18. Rxc3 {[%clk 0:02:21]}  Ne4 {[%clk 0:02:13]} 19. Rc2 {[%clk 0:02:21]}  c5 {[%clk 0:01:56]} 20. cxd5 {[%clk 0:02:17]}  exd5 {[%clk 0:01:56]} 21. dxc5 {[%clk 0:02:17]}  Ndxc5 {[%clk 0:01:56]} 22. Nd4 {[%clk 0:02:18]}  b6 {[%clk 0:01:53]} 23. Rfc1 {[%clk 0:02:08]}  Bd7 {[%clk 0:01:51]} 24. g4 {[%clk 0:01:50]}  a3 {[%clk 0:01:45]} 25. f3 {[%clk 0:01:47]}  Nd6 {[%clk 0:01:45]} 26. Bg3 {[%clk 0:01:47]}  Nc4 {[%clk 0:01:43]} 27. e4 {[%clk 0:01:40]}  Ra4 {[%clk 0:01:30]} 28. Bxc4 {[%clk 0:01:37]}  dxc4 {[%clk 0:01:29]} 29. Rxc4 {[%clk 0:01:37]}  Rxc4 {[%clk 0:01:25]} 30. Rxc4 {[%clk 0:01:38]}  Rc8 {[%clk 0:01:24]} 31. Bd6 {[%clk 0:01:33]}  g5 {[%clk 0:01:11]} 32. Rc3 {[%clk 0:01:32]}  Ne6 {[%clk 0:01:08]} 33. Rxc8+ {[%clk 0:01:23]}  Bxc8 {[%clk 0:01:08]} 34. Nc6 {[%clk 0:01:23]}  Bd7 {[%clk 0:01:02]} 35. Bxa3 {[%clk 0:01:23]}  Nc7 {[%clk 0:01:02]} 36. Ne7+ {[%clk 0:00:26]}  Kh7 {[%clk 0:01:01]} 37. Bd6 {[%clk 0:00:26]}  Nxb5 {[%clk 0:00:59]} 38. Be5 {[%clk 0:00:27]}  Na3 {[%clk 0:00:41]} 39. Nd5 {[%clk 0:00:25]}  Be6 {[%clk 0:00:42]} 40. Nxb6 {[%clk 0:00:13]}  Bxa2 {[%clk 0:00:42]} 41. Nd5 {[%clk 0:00:13]}  Nc4 {[%clk 0:00:32]} 42. Bd4 {[%clk 0:00:13]}  Nd6 {[%clk 0:00:24]} 43. Nf6+ {[%clk 0:00:11]}  Kg6 {[%clk 0:00:23]} 44. Ne8 {[%clk 0:00:12]}  Nxe8 {[%clk 0:00:23]} 0-1


[Site "https://www.chess.com"]

[Event "Titled Tuesday Blitz August 16 Early 2022"]
[White "Costachi, Mihnea"]
[Black "Wagner, Dennis"]
[WhiteFideId "1217518"]
[BlackFideId "24650684"]
[WhiteElo "2437"]
[BlackElo "2355"]
[Result "0-1"]
[Round "10"]
[TimeControl "180+1"]
[Date "2022.08.16"]
[WhiteClock "0:00:12"]
[BlackClock "0:00:08"]

1. d4 {[%clk 0:03:00]}  Nf6 {[%clk 0:02:59]} 2. Bg5 {[%clk 0:02:59]}  d5 {[%clk 0:02:58]} 3. e3 {[%clk 0:02:59]}  c5 {[%clk 0:02:57]} 4. c3 {[%clk 0:02:59]}  Nc6 {[%clk 0:02:42]} 5. Nd2 {[%clk 0:02:59]}  cxd4 {[%clk 0:02:35]} 6. exd4 {[%clk 0:02:59]}  h6 {[%clk 0:02:32]} 7. Bf4 {[%clk 0:02:51]}  Bf5 {[%clk 0:02:30]} 8. Ngf3 {[%clk 0:02:49]}  e6 {[%clk 0:02:27]} 9. Qb3 {[%clk 0:02:46]}  Bd6 {[%clk 0:02:17]} 10. Qxb7 {[%clk 0:02:31]}  Bxf4 {[%clk 0:02:15]} 11. Qxc6+ {[%clk 0:02:30]}  Kf8 {[%clk 0:02:14]} 12. Be2 {[%clk 0:02:19]}  Rb8 {[%clk 0:02:08]} 13. Nb3 {[%clk 0:02:19]}  g5 {[%clk 0:01:51]} 14. O-O {[%clk 0:02:17]}  Kg7 {[%clk 0:01:51]} 15. Ne5 {[%clk 0:02:08]}  Rb6 {[%clk 0:01:44]} 16. Qa4 {[%clk 0:02:05]}  Qc7 {[%clk 0:01:44]} 17. Rfe1 {[%clk 0:01:57]}  h5 {[%clk 0:00:36]} 18. g3 {[%clk 0:01:52]}  Bxe5 {[%clk 0:00:35]} 19. dxe5 {[%clk 0:01:53]}  Ng4 {[%clk 0:00:27]} 20. Nd4 {[%clk 0:01:32]}  Bg6 {[%clk 0:00:26]} 21. Nf3 {[%clk 0:01:31]}  Rxb2 {[%clk 0:00:22]} 22. Qd4 {[%clk 0:01:14]}  Rc8 {[%clk 0:00:15]} 23. h3 {[%clk 0:01:14]}  Nh6 {[%clk 0:00:10]} 24. Rac1 {[%clk 0:01:12]}  Nf5 {[%clk 0:00:10]} 25. Qa4 {[%clk 0:01:10]}  Qc5 {[%clk 0:00:08]} 26. Kg2 {[%clk 0:00:55]}  Ne3+ {[%clk 0:00:08]} 27. fxe3 {[%clk 0:00:54]}  Qxe3 {[%clk 0:00:09]} 28. Ng1 {[%clk 0:00:41]}  Be4+ {[%clk 0:00:08]} 29. Kf1 {[%clk 0:00:42]}  Qxg3 {[%clk 0:00:08]} 30. Qxe4 {[%clk 0:00:15]}  dxe4 {[%clk 0:00:07]} 31. Rcd1 {[%clk 0:00:14]}  e3 {[%clk 0:00:08]} 32. Nf3 {[%clk 0:00:12]}  Qf2# {[%clk 0:00:08]} 0-1


[Site "https://www.chess.com"]

[Event "Titled Tuesday Blitz August 16 Early 2022"]
[White "Demidov, Mikhail"]
[Black "Csonka, Balazs"]
[WhiteFideId "4197143"]
[BlackFideId "742910"]
[WhiteElo "2525"]
[BlackElo "2404"]
[Result "1/2-1/2"]
[Round "10"]
[TimeControl "180+1"]
[Date "2022.08.16"]
[WhiteClock "0:00:10"]
[BlackClock "0:00:09"]

1. Nf3 {[%clk 0:03:00]}  d5 {[%clk 0:02:55]} 2. g3 {[%clk 0:03:00]}  c6 {[%clk 0:02:56]} 3. Bg2 {[%clk 0:03:00]}  Bg4 {[%clk 0:02:55]} 4. Ne5 {[%clk 0:03:00]}  Bf5 {[%clk 0:02:54]} 5. d4 {[%clk 0:03:00]}  Nd7 {[%clk 0:02:54]} 6. O-O {[%clk 0:03:00]}  Nxe5 {[%clk 0:02:49]} 7. dxe5 {[%clk 0:03:01]}  e6 {[%clk 0:02:50]} 8. c4 {[%clk 0:03:01]}  Ne7 {[%clk 0:02:36]} 9. cxd5 {[%clk 0:02:59]}  cxd5 {[%clk 0:02:33]} 10. Nc3 {[%clk 0:02:59]}  Nc6 {[%clk 0:02:29]} 11. e4 {[%clk 0:02:50]}  dxe4 {[%clk 0:02:30]} 12. Nxe4 {[%clk 0:02:50]}  Qxd1 {[%clk 0:02:17]} 13. Rxd1 {[%clk 0:02:49]}  Nxe5 {[%clk 0:02:09]} 14. Bf4 {[%clk 0:02:48]}  Nc6 {[%clk 0:01:59]} 15. Rac1 {[%clk 0:02:47]}  Rd8 {[%clk 0:01:15]} 16. Rxd8+ {[%clk 0:02:41]}  Kxd8 {[%clk 0:01:16]} 17. Ng5 {[%clk 0:02:41]}  Bg6 {[%clk 0:01:14]} 18. Bxc6 {[%clk 0:02:39]}  bxc6 {[%clk 0:01:14]} 19. Rxc6 {[%clk 0:02:39]}  h6 {[%clk 0:00:54]} 20. Nf3 {[%clk 0:02:38]}  Be4 {[%clk 0:00:54]} 21. Rc3 {[%clk 0:02:37]}  Bb4 {[%clk 0:00:34]} 22. Rb3 {[%clk 0:02:27]}  Bxf3 {[%clk 0:00:22]} 23. Rxf3 {[%clk 0:02:25]}  Ke7 {[%clk 0:00:13]} 24. Rb3 {[%clk 0:02:22]}  Bc5 {[%clk 0:00:14]} 25. Be5 {[%clk 0:02:16]}  Rd8 {[%clk 0:00:07]} 26. Bxg7 {[%clk 0:02:00]}  Rd2 {[%clk 0:00:06]} 27. Rb7+ {[%clk 0:01:57]}  Ke8 {[%clk 0:00:06]} 28. b4 {[%clk 0:01:57]}  Bxf2+ {[%clk 0:00:05]} 29. Kf1 {[%clk 0:01:56]}  h5 {[%clk 0:00:05]} 30. a4 {[%clk 0:01:55]}  Be3 {[%clk 0:00:03]} 31. h4 {[%clk 0:01:52]}  Rf2+ {[%clk 0:00:04]} 32. Ke1 {[%clk 0:01:52]}  Rg2 {[%clk 0:00:04]} 33. Be5 {[%clk 0:01:49]}  Ra2 {[%clk 0:00:04]} 34. a5 {[%clk 0:01:48]}  Bf2+ {[%clk 0:00:03]} 35. Kf1 {[%clk 0:01:48]}  Be3 {[%clk 0:00:04]} 36. Ke1 {[%clk 0:01:44]}  f5 {[%clk 0:00:04]} 37. Rh7 {[%clk 0:01:41]}  Bd2+ {[%clk 0:00:04]} 38. Kf1 {[%clk 0:01:39]}  Bxb4 {[%clk 0:00:04]} 39. Rxh5 {[%clk 0:01:34]}  Rxa5 {[%clk 0:00:05]} 40. Rh8+ {[%clk 0:01:32]}  Kf7 {[%clk 0:00:05]} 41. Rh7+ {[%clk 0:01:28]}  Kg8 {[%clk 0:00:05]} 42. Rg7+ {[%clk 0:01:27]}  Kf8 {[%clk 0:00:05]} 43. Bf6 {[%clk 0:01:27]}  Ra2 {[%clk 0:00:04]} 44. Rb7 {[%clk 0:01:19]}  Bd2 {[%clk 0:00:04]} 45. Bd4 {[%clk 0:01:08]}  a5 {[%clk 0:00:04]} 46. Bc5+ {[%clk 0:01:08]}  Kg8 {[%clk 0:00:04]} 47. Re7 {[%clk 0:01:08]}  a4 {[%clk 0:00:04]} 48. Rxe6 {[%clk 0:01:07]}  a3 {[%clk 0:00:05]} 49. Ra6 {[%clk 0:01:06]}  Bc1 {[%clk 0:00:05]} 50. h5 {[%clk 0:01:05]}  Ra1 {[%clk 0:00:05]} 51. Kg2 {[%clk 0:01:04]}  Bb2 {[%clk 0:00:05]} 52. Ra8+ {[%clk 0:00:49]}  Kf7 {[%clk 0:00:05]} 53. Ra7+ {[%clk 0:00:47]}  Kg8 {[%clk 0:00:05]} 54. Be3 {[%clk 0:00:42]}  a2 {[%clk 0:00:05]} 55. Bf4 {[%clk 0:00:40]}  Kh8 {[%clk 0:00:02]} 56. h6 {[%clk 0:00:38]}  Kg8 {[%clk 0:00:03]} 57. Kh2 {[%clk 0:00:36]}  Kh8 {[%clk 0:00:03]} 58. Bd6 {[%clk 0:00:29]}  Bd4 {[%clk 0:00:02]} 59. Ra4 {[%clk 0:00:28]}  Bc3 {[%clk 0:00:02]} 60. Ra7 {[%clk 0:00:25]}  Rd1 {[%clk 0:00:01]} 61. Ra8+ {[%clk 0:00:22]}  Kh7 {[%clk 0:00:01]} 62. Ra7+ {[%clk 0:00:21]}  Kxh6 {[%clk 0:00:02]} 63. Bf4+ {[%clk 0:00:21]}  Kg6 {[%clk 0:00:02]} 64. Ra6+ {[%clk 0:00:19]}  Bf6 {[%clk 0:00:02]} 65. Rxa2 {[%clk 0:00:20]}  Rd7 {[%clk 0:00:03]} 66. Ra6 {[%clk 0:00:20]}  Kf7 {[%clk 0:00:03]} 67. Kh3 {[%clk 0:00:19]}  Re7 {[%clk 0:00:03]} 68. Ra5 {[%clk 0:00:19]}  Kg6 {[%clk 0:00:03]} 69. Kg2 {[%clk 0:00:19]}  Rf7 {[%clk 0:00:03]} 70. Ra6 {[%clk 0:00:19]}  Re7 {[%clk 0:00:03]} 71. Kf3 {[%clk 0:00:19]}  Kf7 {[%clk 0:00:03]} 72. Be3 {[%clk 0:00:19]}  Re6 {[%clk 0:00:03]} 73. Ra7+ {[%clk 0:00:19]}  Kg6 {[%clk 0:00:04]} 74. Ra5 {[%clk 0:00:19]}  Re5 {[%clk 0:00:04]} 75. Ra6 {[%clk 0:00:18]}  Kf7 {[%clk 0:00:04]} 76. Bd4 {[%clk 0:00:18]}  Re6 {[%clk 0:00:05]} 77. Ra7+ {[%clk 0:00:18]}  Kg6 {[%clk 0:00:05]} 78. Be3 {[%clk 0:00:18]}  Bg5 {[%clk 0:00:05]} 79. Bf2 {[%clk 0:00:17]}  Bf6 {[%clk 0:00:05]} 80. Ra8 {[%clk 0:00:17]}  Kf7 {[%clk 0:00:05]} 81. Ra5 {[%clk 0:00:16]}  Kg6 {[%clk 0:00:05]} 82. Be3 {[%clk 0:00:15]}  Bg5 {[%clk 0:00:06]} 83. Bd4 {[%clk 0:00:15]}  Bf6 {[%clk 0:00:06]} 84. Bf2 {[%clk 0:00:15]}  Bd8 {[%clk 0:00:06]} 85. Rb5 {[%clk 0:00:12]}  Bf6 {[%clk 0:00:06]} 86. Be3 {[%clk 0:00:11]}  Be7 {[%clk 0:00:06]} 87. Bf4 {[%clk 0:00:11]}  Bf6 {[%clk 0:00:07]} 88. g4 {[%clk 0:00:09]}  fxg4+ {[%clk 0:00:07]} 89. Kxg4 {[%clk 0:00:10]}  Bg7 {[%clk 0:00:07]} 90. Rg5+ {[%clk 0:00:10]}  Kf7 {[%clk 0:00:08]} 91. Rf5+ {[%clk 0:00:10]}  Bf6 {[%clk 0:00:07]} 92. Bg5 {[%clk 0:00:09]}  Kg6 {[%clk 0:00:08]} 93. Rxf6+ {[%clk 0:00:09]}  Rxf6 {[%clk 0:00:09]} 94. Bxf6 {[%clk 0:00:10]} 1/2-1/2


[Site "https://www.chess.com"]

[Event "Titled Tuesday Blitz August 16 Early 2022"]
[White "Demin, Vladimir"]
[Black "Guz, Ari"]
[WhiteFideId "4167457"]
[BlackFideId "2825759"]
[WhiteElo "2492"]
[BlackElo "1913"]
[Result "1-0"]
[Round "10"]
[TimeControl "180+1"]
[Date "2022.08.16"]
[WhiteClock "0:01:45"]
[BlackClock "0:01:41"]

1. d4 {[%clk 0:03:00]}  Nf6 {[%clk 0:02:55]} 2. Nc3 {[%clk 0:03:01]}  d5 {[%clk 0:02:55]} 3. Bf4 {[%clk 0:03:00]}  a6 {[%clk 0:02:54]} 4. e3 {[%clk 0:03:00]}  e6 {[%clk 0:02:40]} 5. g4 {[%clk 0:02:59]}  Bd6 {[%clk 0:02:39]} 6. g5 {[%clk 0:02:57]}  Nfd7 {[%clk 0:02:39]} 7. h4 {[%clk 0:02:51]}  Bxf4 {[%clk 0:02:36]} 8. exf4 {[%clk 0:02:51]}  c5 {[%clk 0:02:36]} 9. Nf3 {[%clk 0:02:50]}  cxd4 {[%clk 0:02:36]} 10. Nxd4 {[%clk 0:02:50]}  Nc6 {[%clk 0:02:34]} 11. h5 {[%clk 0:02:44]}  Qb6 {[%clk 0:02:31]} 12. Nxc6 {[%clk 0:02:44]}  bxc6 {[%clk 0:02:31]} 13. Qd2 {[%clk 0:02:42]}  Bb7 {[%clk 0:02:25]} 14. Bg2 {[%clk 0:02:36]}  O-O-O {[%clk 0:02:22]} 15. O-O-O {[%clk 0:02:33]}  c5 {[%clk 0:02:19]} 16. f5 {[%clk 0:02:28]}  Ne5 {[%clk 0:02:17]} 17. Qf4 {[%clk 0:02:22]}  Nc4 {[%clk 0:02:13]} 18. b3 {[%clk 0:02:20]}  e5 {[%clk 0:02:03]} 19. Qg4 {[%clk 0:02:09]}  Qb4 {[%clk 0:01:59]} 20. bxc4 {[%clk 0:02:08]}  Qxc3 {[%clk 0:01:58]} 21. Rd3 {[%clk 0:02:07]}  Qa1+ {[%clk 0:01:58]} 22. Kd2 {[%clk 0:02:07]}  Qxa2 {[%clk 0:01:58]} 23. f6+ {[%clk 0:02:00]}  Kb8 {[%clk 0:01:52]} 24. fxg7 {[%clk 0:02:00]}  Rhg8 {[%clk 0:01:50]} 25. Qf5 {[%clk 0:01:51]}  dxc4 {[%clk 0:01:45]} 26. Qxe5+ {[%clk 0:01:50]}  Ka8 {[%clk 0:01:40]} 27. Bxb7+ {[%clk 0:01:49]}  Kxb7 {[%clk 0:01:41]} 28. Qe7+ {[%clk 0:01:46]}  Kc8 {[%clk 0:01:40]} 29. Rxd8+ {[%clk 0:01:45]}  Rxd8+ {[%clk 0:01:41]} 30. Qxd8+ {[%clk 0:01:45]} 1-0


[Site "https://www.chess.com"]

[Event "Titled Tuesday Blitz August 16 Early 2022"]
[White "Fernandez Hernandez, Gerardo"]
[Black "Ciuffoletti, Paolo"]
[WhiteFideId "2207400"]
[BlackFideId "807630"]
[WhiteElo "2169"]
[BlackElo "2143"]
[Result "1-0"]
[Round "10"]
[TimeControl "180+2"]
[Date "2022.08.18"]
[WhiteClock "0:00:00"]
[BlackClock "0:00:00"]

1. e4 {[%clk 0:00:00]}  c5 {[%clk 0:00:00]} 2. d3 {[%clk 0:00:00]}  Nc6 {[%clk 0:00:00]} 3. g3 {[%clk 0:00:00]}  g6 {[%clk 0:00:00]} 4. Bg2 {[%clk 0:00:00]}  Bg7 {[%clk 0:00:00]} 5. f4 {[%clk 0:00:00]}  d6 {[%clk 0:00:00]} 6. Nf3 {[%clk 0:00:00]}  e6 {[%clk 0:00:00]} 7. O-O {[%clk 0:00:00]}  Nge7 {[%clk 0:00:00]} 8. c3 {[%clk 0:00:00]}  Rb8 {[%clk 0:00:00]} 9. Be3 {[%clk 0:00:00]}  b5 {[%clk 0:00:00]} 10. d4 {[%clk 0:00:00]}  cxd4 {[%clk 0:00:00]} 11. cxd4 {[%clk 0:00:00]}  d5 {[%clk 0:00:00]} 12. e5 {[%clk 0:00:00]}  O-O {[%clk 0:00:00]} 13. Nc3 {[%clk 0:00:00]}  Na5 {[%clk 0:00:00]} 14. b3 {[%clk 0:00:00]}  Ba6 {[%clk 0:00:00]} 15. Re1 {[%clk 0:00:00]}  Rc8 {[%clk 0:00:00]} 16. Rc1 {[%clk 0:00:00]}  Qb6 {[%clk 0:00:00]} 17. Qd2 {[%clk 0:00:00]}  Rc7 {[%clk 0:00:00]} 18. Ne2 {[%clk 0:00:00]}  Rfc8 {[%clk 0:00:00]} 19. g4 {[%clk 0:00:00]}  b4 {[%clk 0:00:00]} 20. Ng3 {[%clk 0:00:00]}  Rc3 {[%clk 0:00:00]} 21. Bf1 {[%clk 0:00:00]}  Bxf1 {[%clk 0:00:00]} 22. Rxf1 {[%clk 0:00:00]}  R8c6 {[%clk 0:00:00]} 23. Ne2 {[%clk 0:00:00]}  Rxc1 {[%clk 0:00:00]} 24. Rxc1 {[%clk 0:00:00]}  Qc7 {[%clk 0:00:00]} 25. Ng3 {[%clk 0:00:00]}  Rxc1+ {[%clk 0:00:00]} 26. Qxc1 {[%clk 0:00:00]}  Nec6 {[%clk 0:00:00]} 27. Qc2 {[%clk 0:00:00]}  Qb6 {[%clk 0:00:00]} 28. Kg2 {[%clk 0:00:00]}  Qb5 {[%clk 0:00:00]} 29. f5 {[%clk 0:00:00]}  gxf5 {[%clk 0:00:00]} 30. gxf5 {[%clk 0:00:00]}  Nb7 {[%clk 0:00:00]} 31. f6 {[%clk 0:00:00]}  Bf8 {[%clk 0:00:00]} 32. Ng5 {[%clk 0:00:00]}  Bh6 {[%clk 0:00:00]} 33. Qxh7+ {[%clk 0:00:00]}  Kf8 {[%clk 0:00:00]} 34. Qxf7# {[%clk 0:00:00]} 1-0


[Site "https://www.chess.com"]